fUSD/lending_fUSD_20240814
["ID","MTS","AMOUNT","RATE_DAILY","PERIOD"]
[334805725,1723601466649,-500.0,0.00013698,2]
[334805726,1723601466661,-500.0,0.00013698,2]
[334805727,1723601466671,-151.0,0.00013698,2]
[334805728,1723601466680,-151.0,0.00013698,2]
[334805729,1723601466690,-151.0,0.00013698,2]
[334805730,1723601466699,-2736.02,0.00013698,2]
[334805731,1723601466709,-2144.51,0.00013698,2]
[334805732,1723601466718,-1414.12,0.00013698,2]
[334805733,1723601466728,-1238.45,0.00013698,2]
[334805734,1723601466738,-500.0,0.00013698,2]
[334805735,1723601466747,-689.98,0.00013698,2]
[334805736,1723601466757,-737.49,0.00013698,2]
[334805737,1723601466766,-500.0,0.00013698,2]
[334805738,1723601466775,-151.0,0.00013698,2]
[334805739,1723601466785,-1527.09,0.00013698,2]
[334805740,1723601466795,-500.0,0.00013698,2]
[334805741,1723601466804,-152.959737,0.00013698,2]
[334805742,1723601466814,-805.13,0.00013698,2]
[334805743,1723601466824,-500.0,0.00013698,2]
[334805744,1723601466833,-1100.85,0.00013698,2]
[334805745,1723601466843,-500.0,0.00013698,2]
[334805746,1723601466852,-500.0,0.00013698,2]
[334805747,1723601466862,-500.0,0.00013698,2]
[334805748,1723601466871,-500.0,0.00013698,2]
[334805749,1723601466882,-500.0,0.00013698,2]
[334805750,1723601466891,-500.0,0.00013698,2]
[334805751,1723601466901,-500.0,0.00013698,2]
[334805752,1723601466911,-852.07,0.00013698,2]
[334805753,1723601466920,-500.0,0.00013698,2]
[334805754,1723601466930,-500.0,0.00013698,2]
[334805755,1723601466939,-955.46,0.00013698,2]
[334805756,1723601466948,-500.0,0.00013698,2]
[334805757,1723601466958,-511.56285648,0.00013698,2]
[334805758,1723601466968,-500.0,0.00013698,2]
[334805759,1723601466977,-500.0,0.00013698,2]
[334805760,1723601466987,-500.0,0.00013698,2]
[334805761,1723601466996,-969.24,0.00013698,2]
[334805762,1723601467006,-550.08,0.00013698,2]
[334805763,1723601467015,-500.0,0.00013698,2]
[334805764,1723601467024,-500.0,0.00013698,2]
[334805765,1723601467034,-500.0,0.00013698,2]
[334805766,1723601467043,-8474.17,0.00013698,2]
[334805767,1723601467052,-500.0,0.00013698,2]
[334805768,1723601467061,-8474.17,0.00013698,2]
[334805769,1723601467071,-1157.59,0.00013698,2]
[334805770,1723601467081,-8474.17,0.00013698,2]
[334805771,1723601467091,-2098.57,0.00013698,2]
[334805772,1723601467100,-8474.17,0.00013698,2]
[334805773,1723601467110,-8474.17,0.00013698,2]
[334805774,1723601467120,-5105.75,0.00013698,2]
[334805775,1723601467130,-8474.17,0.00013698,2]
[334805776,1723601467139,-1619.01,0.00013698,2]
[334805777,1723601467148,-8474.17,0.00013698,2]
[334805778,1723601467158,-500.0,0.00013698,2]
[334805779,1723601467167,-8474.17,0.00013698,2]
[334805780,1723601467177,-507.93960178,0.00013698,2]
[334805781,1723601467186,-664.41,0.00013698,2]
[334805782,1723601467195,-8474.17,0.00013698,2]
[334805783,1723601467208,-8474.17,0.00013698,2]
[334805784,1723601467217,-500.0,0.00013698,2]
[334805785,1723601467227,-500.0,0.00013698,2]
[334805786,1723601467237,-8474.17,0.00013698,2]
[334805787,1723601467247,-500.0,0.00013698,2]
[334805788,1723601467257,-2076.16,0.00013698,2]
[334805789,1723601467267,-500.0,0.00013698,2]
[334805790,1723601467276,-707.45,0.00013698,2]
[334805791,1723601467288,-8474.17,0.00013698,2]
[334805792,1723601467297,-3416.13,0.00013698,2]
[334805793,1723601467308,-8474.17,0.00013698,2]
[334805794,1723601467319,-500.0,0.00013698,2]
[334805795,1723601467331,-8474.17,0.00013698,2]
[334805796,1723601467342,-500.0,0.00013698,2]
[334805797,1723601467354,-8474.17,0.00013698,2]
[334805798,1723601467365,-8474.17,0.00013698,2]
[334805799,1723601467374,-8474.17,0.00013698,2]
[334805800,1723601467385,-932.48,0.00013698,2]
[334805801,1723601467395,-8474.17,0.00013698,2]
[334805802,1723601467405,-8474.17,0.00013698,2]
[334805803,1723601467414,-166.84706304,0.00013698,2]
[334805804,1723601467425,-8474.17,0.00013698,2]
[334805805,1723601467435,-8474.17,0.00013698,2]
[334805806,1723601467446,-4941.01,0.00013698,2]
[334805807,1723601467455,-4020.06460028,0.00013698,2]
[334805808,1723601467491,-1732.88242047,0.00013698,2]
[334805809,1723601467502,-394.58101345,0.00013698,2]
[334805810,1723601467514,-296.13443335,0.00013698,2]
[334805811,1723601467527,-2030.50753245,0.00013698,2]
[334805812,1723601467537,-8474.17,0.00013698,2]
[334805813,1723601467547,-8474.22825544,0.00013698,2]
[334805814,1723601467558,-151.0,0.00013698,2]
[334805815,1723601467567,-151.0,0.00013698,2]
[334805816,1723601467577,-1864.22,0.00013698,2]
[334805817,1723601467587,-500.0,0.00013698,2]
[334805818,1723601467597,-151.0,0.00013698,2]
[334805819,1723601467606,-500.0,0.00013698,2]
[334805820,1723601467616,-500.0,0.00013698,2]
[334805821,1723601467626,-151.0,0.00013698,2]
[334805822,1723601467639,-500.0,0.00013698,2]
[334805823,1723601467649,-1559.87421211,0.00013698,2]
[334805824,1723601467661,-1242.78578789,0.00013698,2]
[334805825,1723601467672,-500.0,0.00013698,2]
[334805826,1723601467681,-384.08920811,0.00013698,2]
[334805827,1723601467692,-115.91079189,0.00013698,2]
[334805828,1723601467701,-500.0,0.00013698,2]
[334805829,1723601467710,-500.0,0.00013698,2]
[334805830,1723601467721,-500.0,0.00013698,2]
[334805831,1723601467731,-500.0,0.00013698,2]
[334805832,1723601467740,-501.46382954,0.00013698,2]
[334805833,1723601467749,-542.80849007,0.00013698,2]
[334805834,1723601467760,-93.26150993,0.00013698,2]
[334805835,1723601467770,-499.13848957,0.00013698,2]
[334805836,1723601467781,-1644.87151043,0.00013698,2]
[334805837,1723601467791,-1638.76,0.00013698,2]
[334805838,1723601467800,-500.0,0.00013698,2]
[334805839,1723601467809,-693.7,0.00013698,2]
[334805840,1723601467819,-500.0,0.00013698,2]
[334805841,1723601467829,-569.3,0.00013698,2]
[334805842,1723601467838,-500.0,0.00013698,2]
[334805843,1723601467848,-500.0,0.00013698,2]
[334805844,1723601467857,-1160.59714882,0.00013698,2]
[334805845,1723601467949,-316.41285118,0.00013698,2]
[334805846,1723601467959,-258.03596219,0.00013698,2]
[334805847,1723601467970,-640.224,0.00013698,2]
[334805848,1723601467981,-734.89003781,0.00013698,2]
[334805849,1723601467991,-500.0,0.00013698,2]
[334805850,1723601468000,-499.77902818,0.00013698,2]
[334805851,1723601468011,-654.26,0.00013698,2]
[334805852,1723601468020,-500.0,0.00013698,2]
[334805853,1723601468029,-500.0,0.00013698,2]
[334805854,1723601468039,-500.0,0.00013698,2]
[334805855,1723601468048,-500.0,0.00013698,2]
[334805856,1723601468057,-727.04,0.00013698,2]
[334805857,1723601468067,-500.0,0.00013698,2]
[334805858,1723601468076,-10.55476701,0.00013698,2]
[334805859,1723601468088,-489.44523299,0.00013698,2]
[334805860,1723601468097,-217.94456861,0.00013698,2]
[334805861,1723601468108,-430.65367495,0.00013698,2]
[334805862,1723601468120,-587.468,0.00013698,2]
[334805863,1723601468133,-403.38375644,0.00013698,2]
[334805864,1723601468142,-568.14,0.00013698,2]
[334805865,1723601468151,-417.29705627,0.00013698,2]
[334805866,1723601468162,-82.53785929,0.00013698,2]
[334805867,1723601468171,-11828.26525091,0.00013698,2]
[334805868,1723601468182,-3079.99995,0.00013698,2]
[334805869,1723601468194,-12175.6,0.00013698,2]
[334805870,1723601469481,-241.84479909,0.00013698,2]
[334805871,1723601469491,-500.0,0.00013698,2]
[334805872,1723601469501,-42.53520091,0.00013698,2]
[334805873,1723601469514,-712.52479909,0.00013698,2]
[334805874,1723601469524,-500.0,0.00013698,2]
[334805875,1723601469534,-500.0,0.00013698,2]
[334805876,1723601469544,-500.0,0.00013698,2]
[334805877,1723601469553,-209.07520091,0.00013698,2]
[334805878,1723601469565,-290.92479909,0.00013698,2]
[334805879,1723601469574,-313.15322287,0.00013698,2]
[334805880,1723601470886,-970.74420354,0.00010068,2]
[334805881,1723601470897,-353.68141749,0.00010068,2]
[334805882,1723601470907,-500.0,0.00010068,2]
[334805883,1723601470919,-335.60142443,0.00010068,2]
[334805884,1723601470930,-207.38724246,0.00010068,2]
[334805885,1723601470939,-281.69,0.00012,2]
[334805886,1723601470949,-281.69,0.00012,2]
[334805887,1723601470958,-281.69,0.00012,2]
[334805888,1723601470968,-281.69,0.00012,2]
[334805889,1723601470977,-281.69,0.00012,2]
[334805890,1723601470986,-281.69,0.00012,2]
[334805891,1723601470995,-281.69,0.00012,2]
[334805892,1723601471005,-281.69,0.00012,2]
[334805893,1723601471014,-281.69,0.00012,2]
[334805894,1723601471250,-281.69,0.00012,2]
[334805895,1723601471260,-741.41228965,0.00013698,2]
[334805896,1723601471272,-557.51448748,0.00013698,2]
[334805897,1723601471282,-191.31453453,0.00013698,2]
[334805898,1723601471294,-275.5687984,0.00013698,2]
[334805899,1723601471305,-1050.33666707,0.00013698,2]
[334805900,1723601471315,-500.0,0.00013698,2]
[334805901,1723601471324,-500.0,0.00013698,2]
[334805902,1723601471333,-500.0,0.00013698,2]
[334805903,1723601471342,-500.0,0.00013698,2]
[334805904,1723601471351,-676.98,0.00013698,2]
[334805905,1723601471360,-500.0,0.00013698,2]
[334805906,1723601471369,-500.77738562,0.00013698,2]
[334805907,1723601471378,-519.172203,0.00013699,2]
[334805908,1723601471389,-519.172203,0.00013699,2]
[334805909,1723601471398,-519.172203,0.00013699,2]
[334805910,1723601471407,-519.172203,0.00013699,2]
[334805911,1723601471416,-519.172203,0.00013699,2]
[334805912,1723601471425,-519.172203,0.00013699,2]
[334805913,1723601471435,-519.172203,0.00013699,2]
[334805914,1723601471443,-519.172203,0.00013699,2]
[334805915,1723601471453,-150.19034527,0.00013699,2]
[334805916,1723601471464,-368.98185773,0.00013699,2]
[334805917,1723601471473,-519.172203,0.00013699,2]
[334805918,1723601471482,-2751.0,0.00013699,2]
[334805919,1723601471492,-200.0,0.00013699,2]
[334805920,1723601471501,-151.778315,0.00013699,2]
[334805921,1723601471510,-6734.37946,0.00013699,2]
[334805922,1723601471519,-6734.37946,0.00013699,2]
[334805923,1723601471528,-151.0,0.00013699,2]
[334805924,1723601471537,-163.73756125,0.00013742,2]
[334805925,1723601471546,-150.0,0.00013765,2]
[334805926,1723601471555,-564.87018502,0.00013799,2]
[334805927,1723601471566,-328.39981498,0.00013799,2]
[334805928,1723601471575,-893.27,0.00013799,2]
[334805929,1723601471584,-893.27,0.00013799,2]
[334805930,1723601471593,-890.81968502,0.00013799,2]
[334805931,1723601471635,-281.69,0.00012,2]
[334805932,1723601471644,-281.69,0.00012,2]
[334805933,1723601471654,-2.45031498,0.00013799,2]
[334805934,1723601471663,-893.38640918,0.00013799,2]
[334805935,1723601471673,-151.0,0.00013799,2]
[334805936,1723601471682,-370.479551,0.00013799,2]
[334805937,1723601471691,-370.479551,0.00013799,2]
[334805938,1723601471701,-151.0,0.00013799,2]
[334805939,1723601471711,-151.0,0.00013799,2]
[334805940,1723601471721,-151.0,0.00013799,2]
[334805941,1723601471730,-542.79,0.00013799,2]
[334805942,1723601471739,-542.79,0.00013799,2]
[334805943,1723601471749,-542.79,0.00013799,2]
[334805944,1723601471758,-542.79,0.00013799,2]
[334805945,1723601471768,-542.82158592,0.00013799,2]
[334805946,1723601471777,-1908.42,0.00013799,2]
[334805947,1723601471787,-1908.42,0.00013799,2]
[334805948,1723601471798,-1908.42,0.00013799,2]
[334805949,1723601471808,-1908.42,0.00013799,2]
[334805950,1723601471817,-1908.61707073,0.00013799,2]
[334805951,1723601471827,-151.0,0.000138,2]
[334805952,1723601471836,-151.0,0.000138,2]
[334805953,1723601471845,-151.0,0.000138,2]
[334805954,1723601471854,-151.0,0.000138,2]
[334805955,1723601471864,-151.0,0.000138,2]
[334805956,1723601471873,-302.274811,0.000138,2]
[334805957,1723601471883,-151.0,0.000138,2]
[334805958,1723601471892,-151.0,0.000138,2]
[334805959,1723601471902,-151.0,0.000138,2]
[334805960,1723601471911,-231.493192,0.000138,2]
[334805961,1723601471921,-519.172203,0.000138,2]
[334805962,1723601471930,-519.172203,0.000138,2]
[334805963,1723601471939,-151.0,0.000138,2]
[334805964,1723601471948,-151.0,0.000138,2]
[334805965,1723601471957,-151.0,0.000138,2]
[334805966,1723601471966,-151.0,0.000138,2]
[334805967,1723601471975,-151.0,0.000138,2]
[334805968,1723601471985,-151.0,0.000138,2]
[334805969,1723601471994,-332.658608,0.000138,2]
[334805970,1723601472003,-332.658608,0.000138,2]
[334805971,1723601472012,-151.0,0.000138,2]
[334805972,1723601472021,-151.0,0.000138,2]
[334805973,1723601472030,-151.0,0.000138,2]
[334805974,1723601472039,-280.978255,0.000138,2]
[334805975,1723601472048,-151.0,0.000138,2]
[334805976,1723601472058,-151.0,0.000138,2]
[334805977,1723601472067,-151.0,0.000138,2]
[334805978,1723601472076,-151.0,0.000138,2]
[334805979,1723601472085,-370.479551,0.000138,2]
[334805980,1723601472094,-370.479551,0.000138,2]
[334805981,1723601472103,-151.0,0.000138,2]
[334805982,1723601472112,-151.0,0.000138,2]
[334805983,1723601472122,-151.0,0.000138,2]
[334805984,1723601472133,-151.0,0.000138,2]
[334805985,1723601472142,-151.0,0.000138,2]
[334805986,1723601472151,-151.0,0.000138,2]
[334805987,1723601472161,-151.0,0.000138,2]
[334805988,1723601472170,-151.0,0.000138,2]
[334805989,1723601472179,-151.0,0.000138,2]
[334805990,1723601472188,-151.0,0.000138,2]
[334805991,1723601472197,-151.0,0.000138,2]
[334805992,1723601472209,-151.0,0.000138,2]
[334805993,1723601472218,-151.0,0.000138,2]
[334805994,1723601472227,-151.0,0.000138,2]
[334805995,1723601472236,-151.0,0.000138,2]
[334805996,1723601472245,-57311.31110843,0.000138,2]
[334805997,1723601472257,-62003.14113327,0.000138,2]
[334805998,1723601472268,-1613.48867776,0.000138,2]
[334805999,1723601472280,-4017.62324958,0.000138,2]
[334806000,1723601472292,-605.67764587,0.000138,2]
[334806001,1723601472303,-573.43013765,0.000138,2]
[334806002,1723601472314,-527.587819,0.000138,2]
[334806003,1723601472325,-6060.8,0.000138,2]
[334806004,1723601472335,-3626.9802226,0.000138,2]
[334806005,1723601472346,-2371.67508861,0.000138,2]
[334806006,1723601472357,-1506.12,0.000138,2]
[334806007,1723601472368,-336.21587999,0.000138,2]
[334806008,1723601472379,-257.5506718,0.000138,2]
[334806009,1723601472397,-473.16872116,0.000138,2]
[334806017,1723602487251,1071.47030932,0.00027,120]
[334806026,1723602632084,-258.99,9.923e-05,2]
[334806027,1723602632094,-166.31016265,9.964e-05,2]
[334806035,1723602632218,-265.68193533,9.964e-05,2]
[334806036,1723602632227,-550.0,0.0001,2]
[334806037,1723602632237,-274.183,0.000109,2]
[334806038,1723602632246,-13220.221,0.000109,2]
[334806039,1723602632256,-606.1752,0.000109,2]
[334806040,1723602632265,-963.947,0.000109,2]
[334806041,1723602632275,-5760.7075,0.000109,2]
[334806042,1723602632284,-569.97,0.00010959,2]
[334806043,1723602632293,-7410.43905378,0.0001098,2]
[334806044,1723602632302,-56299.55128238,0.00011,2]
[334806045,1723602632314,-1230.78807392,0.00011,2]
[334806046,1723602632324,-3494.76952503,0.00011,2]
[334806047,1723602632336,-1602.76914189,0.00011,2]
[334806048,1723602632347,-1517.42729465,0.00011,2]
[334806049,1723602632358,-268.07010932,0.00011,2]
[334806050,1723602632369,-1378.29577402,0.00011,2]
[334806051,1723602632380,-277.50880542,0.00011,2]
[334806052,1723602632391,-421.55839924,0.00011,2]
[334806053,1723602632437,-351.96,0.00011,2]
[334806054,1723602632448,-939.82724979,0.00011,2]
[334806055,1723602632459,-1075.9549519,0.00011,2]
[334806056,1723602632470,-1879.8522855,0.00011,2]
[334806057,1723602632481,-622.0,0.00011,2]
[334806059,1723602632495,-557.38182016,0.00011,2]
[334806061,1723602632506,-3955.96712328,0.00011,2]
[334806063,1723602632517,-19207.54554323,0.00011,2]
[334806076,1723602638865,-183.75984862,0.00010997,2]
[334806077,1723602638874,-34493.92615138,0.00011,2]
[334806078,1723602638885,-2200.03350926,0.00011,2]
[334806079,1723602638898,-561.82928208,0.00011,2]
[334806080,1723602638909,-1697.09681295,0.00011,2]
[334806081,1723602638920,-2510.72,0.00011,2]
[334806082,1723602638931,-11775.33259882,0.00011,2]
[334806083,1723602638942,-11456.72412784,0.00011,2]
[334806084,1723602638953,-744.74833634,0.00011,2]
[334806085,1723602638965,-1553.4252,0.00011,2]
[334806086,1723602638976,-684.3775401,0.00011,2]
[334806087,1723602638988,-423.10202108,0.00011,2]
[334806088,1723602639024,-582.24356216,0.00011,2]
[334806089,1723602639036,-351.92,0.00011,2]
[334806090,1723602639046,-122318.0443573,0.00011,2]
[334806091,1723602639061,-3032.14024647,0.00011,2]
[334806092,1723602639073,-1387212.18982179,0.00011,2]
[334806093,1723602639082,-245.42,0.00011,2]
[334806094,1723602639092,-282.56837463,0.0001118,2]
[334806095,1723602639101,-7484.78653634,0.00011186,2]
[334806096,1723602639110,-499.99,0.0001128,2]
[334806097,1723602639119,-699.421,0.0001128,2]
[334806098,1723602639129,-1899.486,0.0001128,2]
[334806099,1723602639138,-1078.56,0.0001128,2]
[334806100,1723602639147,-3121.56631863,0.00011324,2]
[334806101,1723602639157,-3882.16223642,0.00011324,2]
[334806102,1723602639167,-2836.57727598,0.0001185,2]
[334806103,1723602639177,-1000.0,0.0001186,2]
[334806104,1723602639186,-368.63,0.00011861,2]
[334806105,1723602639195,-200.0,0.00011889,2]
[334806106,1723602639204,-250.0,0.00011947,2]
[334806107,1723602639213,-600.0,0.00012,2]
[334806108,1723602639223,-250.0,0.00012044,2]
[334806109,1723602639232,-23890.0,0.00012119,2]
[334806110,1723602639241,-1668.3893,0.00012173,2]
[334806111,1723602639250,-258.99,0.00012187,2]
[334806112,1723602639260,-153.39,0.00012273,2]
[334806113,1723602639269,-164.51,0.00012298,2]
[334806114,1723602639279,-2150.04868944,0.0001236,2]
[334806115,1723602639288,-1500.0,0.0001254,2]
[334806116,1723602639297,-1141.28501544,0.00012581,2]
[334806117,1723602639306,-628.75889526,0.00012613,2]
[334806118,1723602639316,-892.92132292,0.00012665,2]
[334806119,1723602639325,-892.92132292,0.00012665,2]
[334806120,1723602639335,-649.9821502,0.00012665,2]
[334806121,1723602639344,-155.48996788,0.00012666,2]
[334806122,1723602639353,-723.54463909,0.00012681,2]
[334806123,1723602639363,-243.68590047,0.00012681,2]
[334806124,1723602639373,-155.0,0.00012681,2]
[334806125,1723602639382,-166.66694184,0.00012681,2]
[334806126,1723602639392,-445.81605236,0.00012681,2]
[334806127,1723602639403,-921.71726719,0.0001269,2]
[334806128,1723602639412,-394.40691054,0.00012696,2]
[334806129,1723602639421,-250.41,0.00012812,2]
[334806130,1723602639431,-1599.76201433,0.00012934,2]
[334806131,1723602639440,-233.18,0.00013151,2]
[334806132,1723602639450,-676.83,0.00013151,2]
[334806133,1723602639460,-155.4703365,0.00013283,2]
[334806134,1723602639469,-1000.0,0.00013343,2]
[334806135,1723602639479,-59961.62262138,0.00013378,2]
[334806136,1723602639489,-194.98574167,0.00013426,2]
[334806137,1723602639498,-413.81673366,0.00013441,2]
[334806138,1723602639507,-211.05406018,0.00013479,2]
[334806139,1723602639517,-414.95827151,0.00013489,2]
[334806140,1723602639526,-316.80001562,0.00013499,2]
[334806141,1723602639535,-158.16748431,0.00013499,2]
[334806142,1723602639545,-300.0,0.000135,4]
[334806143,1723602639556,-214.36028434,0.00013598,2]
[334806144,1723602639570,-12501.421,0.00013598,2]
[334806145,1723602639580,-1134.1214,0.00013598,2]
[334806146,1723602639591,-4746.2377,0.00013598,2]
[334806147,1723602639601,-285.8965,0.00013598,2]
[334806148,1723602639611,-718.3116,0.00013598,2]
[334806149,1723602639621,-247.9946,0.00013598,2]
[334806150,1723602639631,-7500.0,0.00013598,2]
[334806151,1723602639642,-600.0,0.000136,4]
[334806152,1723602639653,-522.9745894,0.00013648,2]
[334806153,1723602639662,-522.9745894,0.00013648,2]
[334806154,1723602639673,-200.0,0.00013673,2]
[334806155,1723602639683,-162.34779276,0.00013696,2]
[334806156,1723602639693,-173.72973679,0.00013697,2]
[334806157,1723602639703,-100017.71422029,0.00013698,2]
[334806158,1723602639714,-513.49027785,0.00013698,2]
[334806159,1723602639723,-499.84969412,0.00013698,2]
[334806160,1723602639734,-499.70207002,0.00013698,2]
[334806161,1723602639743,-500.69057949,0.00013698,2]
[334806162,1723602639753,-500.96678157,0.00013698,2]
[334806163,1723602639763,-505.92851047,0.00013698,2]
[334806164,1723602639773,-500.4885778,0.00013698,2]
[334806165,1723602639782,-500.72550787,0.00013698,2]
[334806166,1723602639792,-500.74754788,0.00013698,2]
[334806167,1723602639801,-500.86418725,0.00013698,2]
[334806168,1723602639811,-499.50169524,0.00013698,2]
[334806169,1723602639820,-501.34510529,0.00013698,2]
[334806170,1723602639830,-501.43114171,0.00013698,2]
[334806171,1723602639839,-502.72676457,0.00013698,2]
[334806172,1723602639849,-500.0,0.00013698,2]
[334806173,1723602639863,-502.22981704,0.00013698,2]
[334806174,1723602639884,-500.0,0.00013698,2]
[334806175,1723602639899,-500.0,0.00013698,2]
[334806176,1723602639919,-501.09829842,0.00013698,2]
[334806177,1723602639939,-500.0,0.00013698,2]
[334806178,1723602639958,-500.0,0.00013698,2]
[334806179,1723602639976,-500.0,0.00013698,2]
[334806180,1723602639994,-500.0,0.00013698,2]
[334806181,1723602640008,-500.0,0.00013698,2]
[334806182,1723602640026,-501.17240588,0.00013698,2]
[334806183,1723602640046,-500.0,0.00013698,2]
[334806184,1723602640063,-501.88320804,0.00013698,2]
[334806185,1723602640075,-500.0,0.00013698,2]
[334806186,1723602640095,-500.0,0.00013698,2]
[334806187,1723602640111,-500.0,0.00013698,2]
[334806188,1723602640127,-500.0,0.00013698,2]
[334806189,1723602640141,-500.0,0.00013698,2]
[334806190,1723602640167,-500.0,0.00013698,2]
[334806191,1723602640183,-500.0,0.00013698,2]
[334806192,1723602640198,-500.0,0.00013698,2]
[334806193,1723602640213,-500.0,0.00013698,2]
[334806194,1723602640228,-500.0,0.00013698,2]
[334806195,1723602640242,-500.23985776,0.00013698,2]
[334806196,1723602640258,-500.0,0.00013698,2]
[334806197,1723602640273,-500.0,0.00013698,2]
[334806198,1723602640288,-500.23895288,0.00013698,2]
[334806199,1723602640304,-500.0,0.00013698,2]
[334806200,1723602640319,-373.83167143,0.00013698,2]
[334806201,1723602640335,-500.0,0.00013698,2]
[334806202,1723602640350,-502.04753875,0.00013698,2]
[334806203,1723602640365,-500.0,0.00013698,2]
[334806204,1723602640381,-500.0,0.00013698,2]
[334806205,1723602640398,-500.0,0.00013698,2]
[334806206,1723602640413,-500.0,0.00013698,2]
[334806207,1723602640428,-500.0,0.00013698,2]
[334806208,1723602640443,-500.0,0.00013698,2]
[334806209,1723602640459,-673.99,0.00013698,2]
[334806210,1723602640474,-500.0,0.00013698,2]
[334806211,1723602640489,-826.67,0.00013698,2]
[334806212,1723602640505,-500.0,0.00013698,2]
[334806213,1723602640520,-500.0,0.00013698,2]
[334806214,1723602640536,-500.0,0.00013698,2]
[334806215,1723602640550,-500.0,0.00013698,2]
[334806216,1723602640566,-500.0,0.00013698,2]
[334806217,1723602640581,-500.0,0.00013698,2]
[334806218,1723602640597,-500.0,0.00013698,2]
[334806219,1723602640612,-500.0,0.00013698,2]
[334806220,1723602640627,-633.70953987,0.00013698,2]
[334806221,1723602640643,-500.0,0.00013698,2]
[334806222,1723602640659,-500.0,0.00013698,2]
[334806223,1723602640675,-500.0,0.00013698,2]
[334806224,1723602640691,-500.0,0.00013698,2]
[334806225,1723602640706,-500.0,0.00013698,2]
[334806226,1723602640722,-500.0,0.00013698,2]
[334806227,1723602640736,-500.0,0.00013698,2]
[334806229,1723602640751,-500.0,0.00013698,2]
[334806231,1723602640766,-500.0,0.00013698,2]
[334806232,1723602640781,-500.0,0.00013698,2]
[334806233,1723602640795,-500.0,0.00013698,2]
[334806234,1723602640810,-500.0,0.00013698,2]
[334806235,1723602640825,-500.0,0.00013698,2]
[334806236,1723602640841,-500.0,0.00013698,2]
[334806237,1723602640856,-500.0,0.00013698,2]
[334806238,1723602640871,-656.86,0.00013698,2]
[334806239,1723602640889,-500.0,0.00013698,2]
[334806240,1723602640909,-500.0,0.00013698,2]
[334806241,1723602640929,-500.0,0.00013698,2]
[334806242,1723602640946,-500.0,0.00013698,2]
[334806243,1723602640961,-500.0,0.00013698,2]
[334806244,1723602640976,-500.0,0.00013698,2]
[334806245,1723602640991,-567.4,0.00013698,2]
[334806246,1723602641005,-500.0,0.00013698,2]
[334806247,1723602641020,-500.0,0.00013698,2]
[334806248,1723602641035,-500.0,0.00013698,2]
[334806249,1723602641050,-500.0,0.00013698,2]
[334806250,1723602641066,-500.0,0.00013698,2]
[334806251,1723602641082,-500.0,0.00013698,2]
[334806252,1723602641097,-500.0,0.00013698,2]
[334806253,1723602641113,-500.0,0.00013698,2]
[334806254,1723602641128,-500.0,0.00013698,2]
[334806255,1723602641144,-504.43,0.00013698,2]
[334806256,1723602641160,-500.0,0.00013698,2]
[334806257,1723602641176,-500.0,0.00013698,2]
[334806258,1723602641191,-500.0,0.00013698,2]
[334806259,1723602641206,-500.0,0.00013698,2]
[334806260,1723602641223,-500.0,0.00013698,2]
[334806261,1723602641237,-500.0,0.00013698,2]
[334806262,1723602641253,-500.0,0.00013698,2]
[334806263,1723602641268,-500.0,0.00013698,2]